bitfinex/quotes_BTCUSD_20241205
["timestamp","ask_amount","ask_price","bid_price","bid_amount"]
[1733362250093,7e-07,98496.0,98475.0,0.15]
[1733362250332,7e-07,98496.0,98495.0,0.353055]
[1733362250587,0.0002,98519.0,98510.0,0.203025]
[1733362250844,0.0002,98519.0,98510.0,0.45953393]
[1733362250845,8e-07,98511.0,98510.0,0.45953393]
[1733362251105,8e-07,98511.0,98510.0,1.05150522]
[1733362251360,0.0002,98519.0,98518.0,0.353008]
[1733362251609,1e-06,98522.0,98518.0,0.48947807]
[1733362251855,1e-06,98522.0,98521.0,0.49054078]
[1733362252099,1e-06,98522.0,98521.0,0.78892075]
[1733362252335,0.0002,98539.0,98528.0,0.25]
[1733362252585,0.0002,98539.0,98537.0,0.352969]
[1733362252820,0.0002,98539.0,98537.0,0.48943907]
[1733362252821,0.00144555,98538.0,98537.0,0.48943907]
[1733362253303,0.00144555,98538.0,98537.0,0.45768159]
[1733362253853,0.00144555,98538.0,98537.0,0.45295878]
[1733362255018,0.00144555,98538.0,98537.0,0.45795878]
[1733362255249,0.00144555,98538.0,98537.0,0.56695878]
[1733362255482,0.0002,98539.0,98538.0,0.25]
[1733362255729,0.0002,98539.0,98538.0,0.38563658]
[1733362255960,0.00037449,98539.0,98538.0,0.38563658]
[1733362256196,4.9e-07,98539.0,98538.0,0.38563658]
[1733362256463,4.9e-07,98539.0,98538.0,0.48563658]
[1733362256708,0.0002,98559.0,98549.0,0.352944]
[1733362256938,0.0002,98559.0,98549.0,0.45765659]
[1733362257162,0.0002,98559.0,98549.0,0.48858058]
[1733362257860,0.0002,98559.0,98549.0,0.49758058]
[1733362258097,0.0002,98559.0,98549.0,0.48858058]
[1733362258349,0.0002,98559.0,98549.0,0.45765659]
[1733362258583,0.0002,98559.0,98549.0,0.46665659]
[1733362259087,0.0002,98559.0,98549.0,0.49758058]
[1733362259548,0.0002,98559.0,98549.0,0.50658058]
[1733362260011,0.0002,98559.0,98549.0,0.48858058]
[1733362260307,0.0002,98559.0,98552.0,0.202937]
[1733362260580,0.0002,98559.0,98555.0,0.15]
[1733362260831,0.0002,98559.0,98553.0,0.10471259]
[1733362261068,0.0002,98559.0,98554.0,0.10471259]
[1733362261323,0.0002,98559.0,98549.0,0.009]
[1733362261563,0.0002,98559.0,98538.0,0.20313949]
[1733362261564,0.0002,98559.0,98538.0,0.00017449]
[1733362261814,0.0002,98559.0,98552.0,0.009]
[1733362262076,0.0002,98559.0,98552.0,0.017]
[1733362262548,0.0002,98559.0,98552.0,0.009]
[1733362263240,0.202927,98558.0,98538.0,0.00017449]
[1733362263468,0.10471259,98555.0,98538.0,0.00017449]
[1733362263695,0.10471259,98555.0,98525.0,0.202993]
[1733362263696,0.202936,98553.0,98531.0,0.202981]
[1733362263917,0.202936,98553.0,98525.0,0.16799312]
[1733362263918,0.10471259,98552.0,98525.0,0.16799312]
[1733362264203,0.10471259,98552.0,98525.0,0.202992]
[1733362264447,0.02015975,98540.0,98496.0,0.1]
[1733362264665,0.0477,98554.0,98496.0,0.1]
[1733362264666,0.0477,98554.0,98531.0,0.20298]
[1733362264927,0.002,98553.0,98541.0,0.20296]
[1733362265196,0.002,98553.0,98547.0,0.202948]
[1733362265197,0.02038282,98550.0,98547.0,0.202948]
[1733362265481,0.002,98553.0,98549.0,0.202943]
[1733362265938,0.002,98553.0,98550.0,0.10471259]
[1733362266203,0.003,98554.0,98550.0,0.10471259]
[1733362266204,0.003,98554.0,98551.0,0.20294]
[1733362266428,0.00017426,98555.0,98552.0,0.10471259]
[1733362266647,0.002,98553.0,98552.0,0.10471259]
[1733362267847,0.002,98553.0,98552.0,0.10771259]
[1733362268306,0.002,98553.0,98552.0,0.10471259]
[1733362268542,0.00017426,98555.0,98553.0,0.202936]
[1733362268775,0.00017426,98555.0,98554.0,0.10471259]
[1733362269244,0.00017426,98555.0,98553.0,0.202936]
[1733362269507,0.00017426,98555.0,98554.0,0.10471259]
[1733362269977,0.00017426,98555.0,98554.0,0.25471259]
[1733362270441,0.00017426,98555.0,98554.0,0.25771259]
[1733362271191,0.00017426,98555.0,98554.0,0.10471259]
[1733362271420,0.00017426,98555.0,98554.0,0.11371259]
[1733362271663,0.00017426,98555.0,98554.0,0.009]
[1733362272172,0.04717426,98555.0,98554.0,0.016]
[1733362272666,0.04717426,98555.0,98554.0,0.007]
[1733362272903,0.04717426,98555.0,98554.0,0.016]
[1733362273190,0.04717426,98555.0,98554.0,0.10471259]
[1733362273191,0.00017426,98555.0,98554.0,0.10471259]
[1733362274387,0.00017426,98555.0,98554.0,0.10571259]
[1733362274690,0.00017426,98555.0,98554.0,0.10471259]
[1733362274897,0.00017426,98555.0,98554.0,0.60671259]
[1733362275132,0.00017426,98555.0,98554.0,0.75471259]
[1733362275590,0.00017426,98555.0,98554.0,0.85871259]
[1733362275842,0.0010438,98556.0,98555.0,0.352932]
[1733362276118,0.0010438,98556.0,98555.0,0.55781885]
[1733362276579,0.0010438,98556.0,98555.0,0.45781885]
[1733362277053,0.0010438,98556.0,98555.0,0.46681885]
[1733362278014,0.0010438,98556.0,98555.0,0.47281885]
[1733362279230,0.0010438,98556.0,98555.0,0.46681885]
[1733362279499,0.0010438,98556.0,98555.0,0.45781885]
[1733362279817,0.0010438,98556.0,98555.0,0.57281885]
[1733362280058,0.0002,98579.0,98568.0,0.352905]
[1733362280310,0.0002,98579.0,98568.0,0.45761759]
[1733362281912,0.0002,98579.0,98568.0,0.46361759]
[1733362283145,0.0002,98579.0,98568.0,0.47261759]
[1733362287558,0.0002,98579.0,98568.0,0.51417142]
[1733362289257,1e-07,98569.0,98568.0,0.51417142]
[1733362289513,1e-07,98569.0,98568.0,0.61417142]
[1733362289754,4e-07,98583.0,98579.0,0.15]
[1733362290002,0.00018,98591.0,98590.0,0.20286]
[1733362290003,4e-07,98591.0,98590.0,0.20286]
[1733362290256,4e-07,98591.0,98590.0,0.31946799]
[1733362290510,4e-07,98599.0,98596.0,0.202847]
[1733362290751,4e-07,98599.0,98598.0,0.10471259]
[1733362291485,7.3e-07,98599.0,98598.0,0.20471259]
[1733362291979,0.0796,98639.0,98598.0,0.20471259]
[1733362291980,0.07670833,98639.0,98598.0,0.20471259]
[1733362292230,0.07670833,98639.0,98632.0,0.202772]
[1733362292737,0.07670833,98639.0,98630.0,0.202776]
[1733362293228,0.07670833,98639.0,98636.0,0.202765]
[1733362293439,0.07728955,98639.0,98636.0,0.202765]
[1733362294155,0.07728955,98639.0,98636.0,0.40553]
[1733362294911,0.07728955,98639.0,98636.0,0.40653]
[1733362295410,0.07728955,98639.0,98636.0,0.40553]
[1733362296133,0.00058122,98639.0,98638.0,0.202761]
[1733362296354,0.00058122,98639.0,98638.0,0.30747359]
[1733362297065,0.00058122,98639.0,98638.0,0.30736732]
[1733362297529,0.00058122,98639.0,98638.0,0.30936732]
[1733362297792,0.00058122,98639.0,98638.0,0.31536732]
[1733362299270,0.00058122,98639.0,98638.0,0.46536732]
[1733362299520,0.00058122,98639.0,98638.0,0.45936732]
[1733362299775,0.00058122,98639.0,98638.0,0.45736732]
[1733362300023,0.00058122,98639.0,98638.0,0.47136732]
[1733362300243,0.00058122,98639.0,98638.0,0.46236732]
[1733362300473,0.00058122,98639.0,98638.0,0.47136732]
[1733362300725,0.00058122,98639.0,98638.0,0.97136732]
[1733362302564,0.00058122,98639.0,98638.0,0.82136732]
[1733362304228,0.00058122,98639.0,98638.0,0.514]
[1733362304455,0.04628122,98639.0,98638.0,0.514]
[1733362305900,0.04714422,98639.0,98638.0,0.5]
[1733362306110,0.04714422,98639.0,98638.0,0.502]
[1733362306332,0.04714422,98639.0,98638.0,0.509]
[1733362306610,0.04714422,98639.0,98638.0,0.507]
[1733362306846,0.04714422,98639.0,98638.0,0.5]
[1733362307074,0.04714422,98639.0,98638.0,0.508]
[1733362307293,0.04714422,98639.0,98638.0,0.501]
[1733362307745,0.04714422,98639.0,98638.0,0.505]
[1733362308483,0.14714422,98639.0,98638.0,0.505]
[1733362308707,0.22744422,98639.0,98638.0,0.505]
[1733362309412,0.22744422,98639.0,98638.0,0.504]
[1733362309658,0.58215681,98639.0,98638.0,0.3719]
[1733362309909,0.58215681,98639.0,98638.0,0.3749]
[1733362310337,0.68498827,98639.0,98638.0,0.3719]
[1733362310572,0.58215681,98639.0,98638.0,0.2968]
[1733362310784,0.58215681,98639.0,98638.0,0.2938]
[1733362311256,0.58215681,98639.0,98638.0,0.27320101]
[1733362312224,0.1,98615.0,98598.0,0.001726]
[1733362312443,0.1,98615.0,98598.0,0.204568]
[1733362312678,0.1,98615.0,98599.0,0.202841]
[1733362312885,0.1,98615.0,98598.0,0.001726]
[1733362313154,0.202819,98610.0,98598.0,0.001726]
[1733362313395,0.202813,98613.0,98598.0,0.001726]
[1733362313632,0.202813,98613.0,98598.0,0.006726]
[1733362314069,0.02009971,98608.0,98598.0,0.209569]
[1733362314311,0.1,98615.0,98598.0,0.208569]
[1733362314528,0.1,98615.0,98599.0,0.202841]
[1733362314745,0.20281,98614.0,98598.0,0.210569]
[1733362314963,0.20281,98614.0,98598.0,0.007726]
[1733362315200,0.405621,98614.0,98598.0,0.04531425]
[1733362315414,0.20281,98614.0,98598.0,0.20674233]
[1733362315657,0.02008146,98609.0,98598.0,0.21174233]
[1733362315907,0.02008146,98609.0,98598.0,0.20474233]
[1733362316129,0.02008146,98609.0,98603.0,0.202833]
[1733362316389,0.02008146,98609.0,98598.0,0.00990033]
[1733362316390,0.1,98632.0,98598.0,0.00990033]
[1733362316614,0.13901259,98638.0,98598.0,0.00990033]
[1733362316615,0.1,98634.0,98606.0,0.0826]
[1733362316877,0.302768,98635.0,98619.0,0.2028]
[1733362317625,0.302768,98635.0,98616.0,0.202806]
[1733362317834,0.02039479,98620.0,98607.0,0.10471259]
[1733362318091,0.02039479,98620.0,98613.0,0.202811]
[1733362318345,0.202769,98634.0,98607.0,0.10471259]
[1733362318589,0.02058337,98625.0,98607.0,0.10471259]
[1733362318802,0.20279,98624.0,98607.0,0.10471259]
[1733362319064,0.20279,98624.0,98599.0,0.001726]
[1733362319065,0.1,98622.0,98599.0,0.001726]
[1733362319269,0.202796,98621.0,98600.0,0.202839]
[1733362319481,0.202805,98617.0,98613.0,0.002]
[1733362319917,0.202794,98622.0,98613.0,0.002]
[1733362320134,0.12058337,98625.0,98613.0,0.002]
[1733362320369,0.12058337,98625.0,98605.0,0.202828]
[1733362320370,0.02058337,98625.0,98605.0,0.202828]
[1733362320576,0.02058337,98625.0,98599.0,0.001726]
[1733362320839,0.202792,98623.0,98604.0,0.20283]
[1733362321073,0.202794,98622.0,98608.0,0.202821]
[1733362321283,0.02058337,98625.0,98599.0,0.001726]
[1733362321507,0.20279,98624.0,98599.0,0.001726]
[1733362321741,0.202792,98623.0,98609.0,0.20282]
[1733362322009,0.02058337,98625.0,98609.0,0.20282]
[1733362322234,0.20279,98624.0,98608.0,0.001]
[1733362322473,0.20279,98624.0,98599.0,0.204567]
[1733362322474,0.1,98623.0,98599.0,0.204566]
[1733362322696,0.202796,98621.0,98599.0,0.001726]
[1733362322911,0.1,98608.0,98599.0,0.001726]
[1733362323147,0.1,98610.0,98598.0,0.00190033]
[1733362323148,0.302841,98599.0,98598.0,0.00190033]
[1733362323366,0.302841,98599.0,98560.0,0.0476]
[1733362323367,0.202886,98578.0,98560.0,0.0476]
[1733362323589,0.1,98598.0,98560.0,0.0476]
[1733362323590,0.202878,98582.0,98567.0,0.202906]
[1733362324042,0.302857,98592.0,98560.0,0.15231259]
[1733362324278,0.02020814,98586.0,98579.0,0.202881]
[1733362324579,0.202845,98597.0,98561.0,0.10471259]
[1733362324580,0.202847,98597.0,98583.0,0.202872]
[1733362324834,0.202847,98597.0,98562.0,0.202917]
[1733362324835,0.0001742,98599.0,98564.0,0.202913]
[1733362325066,0.0001742,98599.0,98563.0,0.15]
[1733362325067,0.01991618,98597.0,98566.0,0.15]
[1733362325282,0.202861,98590.0,98567.0,0.10471259]
[1733362325501,0.01991618,98597.0,98567.0,0.10471259]
[1733362325502,0.202866,98588.0,98576.0,0.202889]
[1733362325724,0.202866,98588.0,98572.0,0.202895]
[1733362325963,0.20285,98595.0,98567.0,0.10471259]
[1733362326206,0.01991618,98597.0,98567.0,0.10471259]
[1733362326430,0.202847,98596.0,98581.0,0.202877]
[1733362326908,0.01991618,98597.0,98587.0,0.202866]
[1733362327139,0.002,98588.0,98567.0,0.10471259]
[1733362327396,0.002,98588.0,98582.0,0.202874]
[1733362327663,0.002,98588.0,98584.0,0.250872]
[1733362327911,0.002,98588.0,98585.0,0.10471259]
[1733362328404,0.0001742,98599.0,98598.0,0.202843]
[1733362328839,0.0001742,98599.0,98585.0,0.10471259]
[1733362329066,0.0001742,98599.0,98585.0,0.11371259]
[1733362329290,0.0001742,98599.0,98585.0,0.10471259]
[1733362329762,0.0001742,98599.0,98585.0,0.10971259]
[1733362330051,0.0001742,98599.0,98598.0,0.006]
[1733362330554,0.0001742,98599.0,98598.0,0.11071259]
[1733362331022,0.0001742,98599.0,98590.0,0.202858]
[1733362331246,0.0001742,98599.0,98593.0,0.202853]
[1733362331463,0.0001742,98599.0,98597.0,0.202844]
[1733362331681,0.0001742,98599.0,98590.0,0.202859]
[1733362331938,0.0001742,98599.0,98587.0,0.202866]
[1733362332181,0.0001742,98599.0,98585.0,0.0077268]
[1733362332182,0.0001742,98599.0,98585.0,0.0067268]
[1733362332462,0.202843,98598.0,98585.0,0.0017268]
[1733362332675,0.202843,98598.0,98593.0,0.001]
[1733362332899,0.0001742,98599.0,98590.0,0.005]
[1733362333363,0.0011742,98599.0,98590.0,0.005]
[1733362333829,0.202844,98598.0,98590.0,0.005]
[1733362334491,0.2030172,98599.0,98585.0,0.0017268]
[1733362334714,0.20285,98595.0,98585.0,0.0017268]
[1733362334950,0.0021742,98599.0,98585.0,0.0017268]
[1733362334951,0.0021742,98599.0,98587.0,0.001]
[1733362335204,0.202843,98598.0,98587.0,0.001]
[1733362335433,0.0001742,98599.0,98587.0,0.001]
[1733362335434,0.0001742,98599.0,98596.0,0.202846]
[1733362335681,0.0001742,98599.0,98586.0,0.202866]
[1733362336151,0.0001742,98599.0,98591.0,0.202857]
[1733362336372,0.001,98598.0,98585.0,0.0017268]
[1733362336594,0.202845,98597.0,98585.0,0.0017268]
[1733362336850,0.001,98598.0,98585.0,0.0017268]
[1733362337082,0.202866,98587.0,98585.0,0.0017268]
[1733362338762,0.202866,98587.0,98585.0,0.0037268]
[1733362339208,0.202866,98587.0,98585.0,0.0017268]
[1733362339423,0.203866,98587.0,98585.0,0.0017268]
[1733362339944,0.10471259,98586.0,98585.0,0.0017268]
[1733362340171,0.45471259,98586.0,98585.0,0.0017268]
[1733362340435,0.56110355,98586.0,98585.0,0.0017268]
[1733362340641,0.47495929,98586.0,98585.0,0.0017268]
[1733362341376,0.47595929,98586.0,98585.0,0.0017268]
[1733362341590,0.47595929,98586.0,98585.0,0.0027268]
[1733362341852,0.47495929,98586.0,98585.0,0.0027268]
[1733362342099,0.47495929,98586.0,98585.0,0.0017268]
[1733362342312,0.49489001,98586.0,98585.0,0.0017268]
[1733362342572,0.47595929,98586.0,98585.0,0.0017268]
[1733362342797,0.50648472,98586.0,98585.0,0.0017268]
[1733362343047,0.50648472,98586.0,98585.0,0.0027268]
[1733362343048,0.40648472,98586.0,98585.0,0.0027268]
[1733362343304,0.37495929,98586.0,98585.0,0.0027268]
[1733362343522,0.12495929,98586.0,98585.0,0.0027268]
[1733362343798,0.0202467,98586.0,98585.0,0.0017268]
[1733362344016,0.0232467,98586.0,98585.0,0.0027268]
[1733362344500,0.0202467,98586.0,98585.0,0.0017268]
[1733362344779,0.27755626,98586.0,98585.0,0.0017268]
[1733362345044,0.28055626,98586.0,98585.0,0.0027268]
[1733362345271,0.22795929,98586.0,98585.0,0.00257995]
[1733362345487,0.47495929,98586.0,98585.0,0.00157995]
[1733362345757,0.47595929,98586.0,98585.0,0.00257995]
[1733362345996,0.47595929,98586.0,98585.0,0.00157995]
[1733362345997,0.56412752,98586.0,98585.0,0.00157995]
[1733362346514,0.53385929,98586.0,98585.0,0.00157995]
[1733362346966,0.53285929,98586.0,98585.0,0.00257995]
[1733362347229,0.47495929,98586.0,98585.0,0.00257995]
[1733362347469,0.22795929,98586.0,98585.0,0.00257995]
[1733362347918,0.54832752,98586.0,98585.0,0.00257995]
[1733362348139,0.55132752,98586.0,98585.0,0.00257995]
[1733362348645,0.55132752,98586.0,98585.0,0.00357995]
[1733362348889,0.58284092,98586.0,98585.0,0.00357995]
[1733362349116,0.50947269,98586.0,98585.0,0.00357995]
[1733362350580,0.12795929,98586.0,98585.0,0.00357995]
[1733362350811,0.1232467,98586.0,98585.0,0.00357995]
[1733362351725,0.32795929,98586.0,98585.0,0.00357995]
[1733362352263,0.47795929,98586.0,98585.0,0.00357995]
[1733362352508,0.56632752,98586.0,98585.0,0.00357995]
[1733362354373,0.59784071,98586.0,98585.0,0.00357995]
[1733362355774,0.56632752,98586.0,98585.0,0.00357995]
[1733362356241,0.59784329,98586.0,98585.0,0.00357995]
[1733362356702,0.56719102,98586.0,98585.0,0.00357995]
[1733362357665,0.47882279,98586.0,98585.0,0.00347773]
[1733362358335,0.02426428,98586.0,98585.0,0.00347773]
[1733362358584,0.27426428,98586.0,98585.0,0.00347773]
[1733362358804,0.47897687,98586.0,98585.0,0.00347773]
[1733362359046,0.37897687,98586.0,98585.0,0.00347773]
[1733362359279,0.47897687,98586.0,98585.0,0.00347773]
[1733362359982,0.37897687,98586.0,98585.0,0.00347773]
[1733362360207,0.47897687,98586.0,98585.0,0.00347773]
[1733362360896,0.37897687,98586.0,98585.0,0.00347773]
[1733362361145,0.47897687,98586.0,98585.0,0.00347773]
[1733362363046,0.47882279,98586.0,98585.0,0.00347773]
[1733362363279,0.5105072,98586.0,98585.0,0.00347773]
[1733362363505,0.59896178,98586.0,98585.0,0.00347773]
[1733362363736,0.59896178,98586.0,98555.0,0.0017276]
[1733362363737,0.20293,98556.0,98555.0,0.0017276]
[1733362363972,0.1,98568.0,98553.0,0.0473]
[1733362363973,0.202932,98555.0,98553.0,0.0473]
[1733362364458,0.202904,98569.0,98553.0,0.0473]
[1733362364459,0.1,98572.0,98553.0,0.1233]
[1733362364461,0.00015408,98554.0,98553.0,0.1233]
[1733362365167,0.02023558,98554.0,98553.0,0.12347426]
[1733362365387,0.02023558,98554.0,98547.0,0.202946]
[1733362365601,0.00032818,98554.0,98553.0,0.003]
[1733362366561,0.00032818,98554.0,98553.0,0.004]
[1733362367076,0.00032818,98554.0,98553.0,0.001]
[1733362367797,0.00032818,98554.0,98553.0,0.002727]
[1733362368035,0.00032818,98554.0,98553.0,0.006727]
[1733362368266,0.01930213,98554.0,98553.0,0.006727]
[1733362370216,0.00032818,98554.0,98553.0,0.11143959]
[1733362370705,0.00032818,98554.0,98553.0,0.19228792]
[1733362370963,0.00032818,98554.0,98553.0,0.34228792]
[1733362371208,0.0008635,98586.0,98553.0,0.34228792]
[1733362371209,0.0008635,98586.0,98582.0,0.0804]
[1733362371693,0.02079081,98583.0,98582.0,0.0804]
[1733362372941,0.02179081,98583.0,98567.0,0.075]
[1733362373187,0.02179081,98583.0,98568.0,0.202905]
[1733362373422,0.02079081,98583.0,98567.0,0.075]
[1733362373657,0.202876,98582.0,98568.0,0.202905]
[1733362374143,0.02079081,98583.0,98572.0,0.202896]
[1733362374373,0.02079081,98583.0,98567.0,0.075]
[1733362374609,0.02179081,98583.0,98580.0,0.20288]
[1733362374861,0.02079081,98583.0,98580.0,0.20288]
[1733362375082,0.02079081,98583.0,98580.0,0.40576]
[1733362375314,0.02079081,98583.0,98580.0,0.20288]
[1733362375549,0.00103779,98586.0,98583.0,0.202874]
[1733362377263,0.00303779,98586.0,98583.0,0.202874]
[1733362377498,0.00403779,98586.0,98583.0,0.202874]
[1733362378206,0.00403779,98586.0,98583.0,0.405748]
[1733362378485,0.00403779,98586.0,98585.0,0.20287]
[1733362378729,0.00403779,98586.0,98585.0,0.30758259]
[1733362379213,0.00203779,98586.0,98585.0,0.30758259]
[1733362379715,0.00403779,98586.0,98585.0,0.30758259]
[1733362379961,0.00303779,98586.0,98585.0,0.30758259]
[1733362380203,0.00103779,98586.0,98585.0,0.31558259]
[1733362380429,0.00103779,98586.0,98585.0,0.31958259]
[1733362382992,0.00103779,98586.0,98585.0,0.11671259]
[1733362383222,0.00103779,98586.0,98585.0,0.012]
[1733362385276,0.00103779,98586.0,98585.0,0.11671259]
[1733362388434,0.00103779,98586.0,98585.0,0.012]
[1733362388901,0.04171397,98586.0,98585.0,0.012]
[1733362389120,0.00103779,98586.0,98585.0,0.012]
[1733362389573,0.00103779,98586.0,98585.0,0.008]
[1733362390057,0.00103779,98586.0,98573.0,0.202894]
[1733362390058,0.20287,98585.0,98573.0,0.202894]
[1733362390343,0.00103779,98586.0,98566.0,0.202909]
[1733362390344,0.00303779,98586.0,98566.0,0.202909]
[1733362390581,0.00303779,98586.0,98584.0,0.20287]
[1733362390582,0.00103779,98586.0,98584.0,0.20287]
[1733362391026,0.00503779,98586.0,98584.0,0.202871]
[1733362391273,0.00303779,98586.0,98584.0,0.202871]
[1733362391522,0.00303779,98586.0,98585.0,0.0783]
[1733362391728,0.00303779,98586.0,98585.0,0.18301259]
[1733362391979,0.00503779,98586.0,98585.0,0.18301259]
[1733362392243,0.00303779,98586.0,98585.0,0.18301259]
[1733362392478,0.00103779,98586.0,98585.0,0.18301259]
[1733362392718,0.00103779,98586.0,98585.0,0.33301259]
[1733362393005,0.00103779,98586.0,98585.0,0.33601259]
[1733362393762,0.01983955,98619.0,98597.0,0.202845]
[1733362393980,0.01983955,98619.0,98597.0,0.30755759]
[1733362395198,0.01983955,98619.0,98597.0,0.31655759]
[1733362395447,0.01983955,98619.0,98597.0,0.32155759]
[1733362397622,0.09157339,98655.0,98597.0,0.32155759]
[1733362397623,0.15,98645.0,98597.0,0.55345759]
[1733362397872,0.02042766,98625.0,98597.0,0.60305759]
[1733362398762,0.02042766,98625.0,98597.0,0.64421678]
[1733362399261,0.0005675,98607.0,98597.0,0.64421678]
[1733362400820,0.0005675,98607.0,98606.0,0.202827]
[1733362401077,5e-07,98607.0,98606.0,0.53943959]
[1733362401285,0.1,98653.0,98606.0,0.53943959]
[1733362401286,0.01977891,98638.0,98637.0,0.284463]
[1733362401736,0.00038,98659.0,98637.0,0.38917559]
[1733362401949,0.00038,98659.0,98638.0,0.10471259]
[1733362402396,0.00038,98659.0,98638.0,0.25471259]
[1733362402821,0.00144422,98639.0,98638.0,0.25471259]
[1733362403033,0.00038,98659.0,98654.0,0.202728]
[1733362403257,0.00038,98659.0,98654.0,0.30744059]
[1733362403508,0.00103805,98655.0,98654.0,0.38914059]
[1733362403742,0.00038,98659.0,98655.0,0.202725]
[1733362403981,0.00038,98659.0,98657.0,0.202722]
[1733362404253,0.00038,98659.0,98658.0,0.10471259]
[1733362405791,0.00038,98659.0,98658.0,0.11071259]
[1733362406003,0.00038,98659.0,98658.0,0.26071259]
[1733362406658,0.00038,98659.0,98658.0,0.26971259]
[1733362406879,0.00038,98659.0,98658.0,0.26371259]
[1733362407342,0.00038,98659.0,98658.0,0.26971259]
[1733362407843,0.00038,98659.0,98658.0,0.26371259]
[1733362408079,0.00038,98659.0,98658.0,0.26171259]
[1733362408720,0.0008638,98668.0,98658.0,0.25471259]
[1733362408959,0.0008638,98668.0,98667.0,0.202702]
[1733362409165,0.0008638,98668.0,98667.0,0.30741459]
[1733362409617,0.0008638,98668.0,98667.0,0.43111459]
[1733362409825,0.0008638,98668.0,98667.0,0.58111459]
[1733362410465,0.0008638,98668.0,98667.0,0.61082952]
[1733362410710,0.0008638,98668.0,98667.0,0.59011459]
[1733362410941,0.0008638,98668.0,98667.0,0.61082952]
[1733362411150,0.0008638,98668.0,98667.0,0.58111459]
[1733362411361,0.0008638,98668.0,98667.0,0.59011459]
[1733362412020,0.0008638,98668.0,98667.0,0.6256034]
[1733362412953,0.0008638,98668.0,98667.0,0.59511459]
[1733362413855,0.0008638,98668.0,98667.0,0.59501261]
[1733362416311,0.0008638,98668.0,98667.0,0.63620707]
[1733362417390,0.00010197,98679.0,98678.0,0.202679]
[1733362417596,0.00010197,98679.0,98678.0,0.45739159]
[1733362418375,0.00010197,98679.0,98678.0,0.202679]
[1733362418827,0.00010197,98679.0,98678.0,0.204679]
[1733362419285,0.00010197,98679.0,98678.0,0.30939159]
[1733362419715,0.00010197,98679.0,98678.0,0.31639159]
[1733362421133,0.00010197,98679.0,98678.0,0.46639159]
[1733362424700,0.0146903,98681.0,98679.0,0.15]
[1733362424929,0.0146903,98681.0,98680.0,0.30738759]
[1733362425587,0.0146903,98681.0,98680.0,0.45738759]
[1733362426330,0.01402865,98681.0,98680.0,0.45738759]
[1733362426569,0.01402865,98681.0,98680.0,0.46338759]
[1733362427249,0.01402865,98681.0,98680.0,0.46538759]
[1733362429912,0.01489275,98681.0,98680.0,0.46538759]
[1733362430785,0.01489275,98681.0,98680.0,0.58758759]
[1733362431240,3.5e-07,98697.0,98687.0,0.202659]
[1733362431489,3.5e-07,98697.0,98696.0,0.25471259]
[1733362432641,0.0001745,98697.0,98696.0,0.25471259]
[1733362433086,0.0001745,98697.0,98696.0,0.26371259]
[1733362433546,0.0001745,98697.0,98696.0,0.11371259]
[1733362433548,0.0001745,98697.0,98696.0,0.015]
[1733362434025,0.0001745,98697.0,98696.0,0.217642]
[1733362434508,0.0001745,98697.0,98696.0,0.015]
[1733362434958,0.0001745,98697.0,98696.0,0.006]
[1733362435174,0.0001745,98697.0,98696.0,0.015]
[1733362435175,0.0767745,98697.0,98696.0,0.015]
[1733362435407,0.0767745,98697.0,98696.0,0.009]
[1733362435629,0.0767745,98697.0,98685.0,0.202663]
[1733362435869,0.0767745,98697.0,98696.0,0.003]
[1733362436096,0.0767745,98697.0,98696.0,0.008]
[1733362436327,0.0767745,98697.0,98695.0,0.202643]
[1733362436328,0.0001745,98697.0,98695.0,0.202643]
[1733362436592,0.0001745,98697.0,98696.0,0.003]
[1733362437317,0.0001745,98697.0,98680.0,0.202675]
[1733362437585,0.0001745,98697.0,98670.0,0.15]
[1733362437807,0.0001745,98697.0,98685.0,0.202663]
[1733362438028,0.0001745,98697.0,98696.0,0.003]
[1733362438520,0.0001745,98697.0,98689.0,0.202655]
[1733362438521,0.0001745,98697.0,98695.0,0.001]
[1733362438751,0.01990466,98706.0,98695.0,0.001]
[1733362438991,0.01990466,98706.0,98696.0,0.202642]
[1733362439235,0.01990466,98706.0,98696.0,0.205642]
[1733362439447,0.01990466,98706.0,98695.0,0.00017415]
[1733362440417,0.02190466,98706.0,98695.0,0.00317415]
[1733362441656,0.01990466,98706.0,98695.0,0.00317415]
[1733362441867,0.02190466,98706.0,98695.0,0.00317415]
[1733362442096,0.02290466,98706.0,98695.0,0.00317415]
[1733362442588,0.04869563,98706.0,98695.0,0.00317415]
[1733362442805,0.202638,98698.0,98695.0,0.00317415]
[1733362443268,0.405276,98698.0,98695.0,0.00317415]
[1733362443801,0.1,98694.0,98636.0,0.13787186]
[1733362444028,0.1,98694.0,98656.0,0.040572]
[1733362444029,0.202703,98667.0,98656.0,0.040572]
[1733362444241,0.0786,98671.0,98637.0,0.10471259]
[1733362444481,0.202695,98670.0,98637.0,0.10471259]
[1733362444700,0.0786,98671.0,98654.0,0.202727]
[1733362444701,0.01893953,98669.0,98654.0,0.202727]
[1733362444931,0.01893953,98668.0,98638.0,0.040576]
[1733362445152,0.0786,98671.0,98657.0,0.202721]
[1733362445153,0.01893953,98667.0,98657.0,0.202721]
[1733362445392,0.0786,98671.0,98661.0,0.202712]
[1733362445393,0.01893953,98666.0,98661.0,0.202712]
[1733362445630,0.0786,98671.0,98654.0,0.202727]
[1733362445631,0.01893953,98665.0,98654.0,0.202727]
[1733362445864,0.01995529,98668.0,98654.0,0.30743959]
[1733362446376,0.01995529,98668.0,98650.0,0.202736]
[1733362446377,0.01995529,98668.0,98657.0,0.002]
[1733362446591,0.01995529,98668.0,98661.0,0.001]
[1733362447268,0.01995529,98668.0,98663.0,0.20271]
[1733362447537,0.01995529,98668.0,98661.0,0.001]
[1733362447538,0.0786,98684.0,98661.0,0.001]
[1733362447770,0.0786,98684.0,98672.0,0.20269]
[1733362448268,0.01981752,98673.0,98672.0,0.405381]
[1733362448759,0.01981752,98673.0,98664.0,0.202708]
[1733362448986,0.01981752,98673.0,98659.0,0.202717]
[1733362449236,0.01981752,98673.0,98641.0,0.15]
[1733362449237,0.01981752,98673.0,98660.0,0.10471259]
[1733362449485,0.01981752,98673.0,98660.0,0.30742759]
[1733362449699,0.01981752,98673.0,98656.0,0.202723]
[1733362449700,0.01981752,98673.0,98659.0,0.04214626]
[1733362449921,0.0777,98672.0,98647.0,0.00017425]